[Event "World Junior Chess Championship U20 2022"]
[White "Winkelman, Albert"]
[Black "Veiga, Jose Francisco R P Neves"]
[WhiteFideId "3219941"]
[BlackFideId "1930087"]
[WhiteElo "2229"]
[BlackElo "2409"]
[Result "1/2-1/2"]
[Round "04"]
[TimeControl "5400+30"]
[Date "2022.10.14"]
[WhiteClock "0:02:09"]
[BlackClock "0:00:52"]

1. e4 {[%clk 1:30:55]}  e5 {[%clk 1:27:20]} 2. Nf3 {[%clk 1:31:11]}  Nc6 {[%clk 1:27:46]} 3. Bb5 {[%clk 1:31:30]}  a6 {[%clk 1:27:28]} 4. Ba4 {[%clk 1:31:48]}  Nf6 {[%clk 1:27:48]} 5. O-O {[%clk 1:32:02]}  Be7 {[%clk 1:28:04]} 6. Re1 {[%clk 1:32:03]}  b5 {[%clk 1:28:19]} 7. Bb3 {[%clk 1:32:21]}  d6 {[%clk 1:28:41]} 8. c3 {[%clk 1:32:28]}  O-O {[%clk 1:28:52]} 9. h3 {[%clk 1:32:42]}  Nb8 {[%clk 1:28:29]} 10. d4 {[%clk 1:32:44]}  Nbd7 {[%clk 1:28:55]} 11. Nbd2 {[%clk 1:30:58]}  c5 {[%clk 1:27:00]} 12. Nf1 {[%clk 1:28:18]}  Re8 {[%clk 1:25:14]} 13. Ng3 {[%clk 1:14:38]}  Bf8 {[%clk 1:25:08]} 14. a4 {[%clk 1:05:10]}  Rb8 {[%clk 1:23:52]} 15. Bc2 {[%clk 1:03:46]}  g6 {[%clk 1:23:40]} 16. b3 {[%clk 1:04:05]}  Bg7 {[%clk 1:04:05]} 17. d5 {[%clk 0:51:24]}  b4 {[%clk 0:41:53]} 18. Bd3 {[%clk 0:51:30]}  a5 {[%clk 0:39:03]} 19. Bb5 {[%clk 0:51:52]}  Rf8 {[%clk 0:37:34]} 20. Bg5 {[%clk 0:50:01]}  h6 {[%clk 0:34:35]} 21. Be3 {[%clk 0:50:16]}  Ne8 {[%clk 0:33:27]} 22. Bd3 {[%clk 0:49:21]}  Ra8 {[%clk 0:30:25]} 23. Qc1 {[%clk 0:40:13]}  Kh7 {[%clk 0:30:04]} 24. h4 {[%clk 0:40:13]}  Ndf6 {[%clk 0:28:34]} 25. h5 {[%clk 0:38:41]}  Ng4 {[%clk 0:24:52]} 26. Kf1 {[%clk 0:35:58]}  Nxe3+ {[%clk 0:23:32]} 27. Qxe3 {[%clk 0:36:02]}  Nf6 {[%clk 0:19:16]} 28. cxb4 {[%clk 0:31:03]}  axb4 {[%clk 0:18:03]} 29. Be2 {[%clk 0:28:38]}  Ng4 {[%clk 0:17:24]} 30. Qd2 {[%clk 0:25:57]}  Bf6 {[%clk 0:12:29]} 31. Bd3 {[%clk 0:24:22]}  Bg7 {[%clk 0:10:45]} 32. Be2 {[%clk 0:18:26]}  Ra7 {[%clk 0:10:49]} 33. Ra2 {[%clk 0:17:12]}  Nf6 {[%clk 0:09:20]} 34. Ng1 {[%clk 0:15:15]}  Rh8 {[%clk 0:08:08]} 35. Rea1 {[%clk 0:12:56]}  Ra5 {[%clk 0:08:22]} 36. Ke1 {[%clk 0:12:33]}  Bf8 {[%clk 0:07:48]} 37. Bf3 {[%clk 0:10:14]}  Be7 {[%clk 0:07:43]} 38. N1e2 {[%clk 0:10:39]}  Ng4 {[%clk 0:06:28]} 39. Nc1 {[%clk 0:02:08]}  Bg5 {[%clk 0:06:11]} 40. Qe2 {[%clk 0:01:55]}  Nh2 {[%clk 0:04:24]} 41. Nd3 {[%clk 0:01:03]}  Ra7 {[%clk 0:25:00]} 42. Nf1 {[%clk 0:29:19]}  Nxf1 {[%clk 0:17:37]} 43. Kxf1 {[%clk 0:28:30]}  Rf8 {[%clk 0:13:30]} 44. Nb2 {[%clk 0:28:03]}  gxh5 {[%clk 0:12:52]} 45. Bxh5 {[%clk 0:26:34]}  f5 {[%clk 0:13:03]} 46. exf5 {[%clk 0:24:40]}  Bxf5 {[%clk 0:13:17]} 47. Bf3 {[%clk 0:24:05]}  Kh8 {[%clk 0:12:29]} 48. Be4 {[%clk 0:24:11]}  Bc8 {[%clk 0:10:23]} 49. a5 {[%clk 0:22:30]}  Bh4 {[%clk 0:09:19]} 50. Nd1 {[%clk 0:22:50]}  Qg5 {[%clk 0:06:30]} 51. a6 {[%clk 0:18:48]}  Bg4 {[%clk 0:05:35]} 52. Qe3 {[%clk 0:17:22]}  Qh5 {[%clk 0:05:45]} 53. f3 {[%clk 0:16:46]}  Bg5 {[%clk 0:06:07]} 54. Qg1 {[%clk 0:16:46]}  Bd7 {[%clk 0:06:13]} 55. Ra5 {[%clk 0:16:27]}  Bd8 {[%clk 0:05:59]} 56. R5a2 {[%clk 0:11:53]}  Bb5+ {[%clk 0:06:26]} 57. Ke1 {[%clk 0:12:14]}  Bh4+ {[%clk 0:06:02]} 58. Kd2 {[%clk 0:12:02]}  Bg5+ {[%clk 0:06:11]} 59. Kc2 {[%clk 0:12:17]}  Rfa8 {[%clk 0:06:04]} 60. Nb2 {[%clk 0:11:17]}  Bf4 {[%clk 0:03:20]} 61. Ra5 {[%clk 0:10:03]}  Rb8 {[%clk 0:01:41]} 62. Nd3 {[%clk 0:08:10]}  Qg5 {[%clk 0:02:04]} 63. Nxf4 {[%clk 0:06:55]}  exf4 {[%clk 0:02:31]} 64. R1a2 {[%clk 0:07:02]}  Kg8 {[%clk 0:02:27]} 65. Kb1 {[%clk 0:06:52]}  Rb6 {[%clk 0:02:26]} 66. Qh2 {[%clk 0:05:20]}  Bd7 {[%clk 0:01:51]} 67. Qh1 {[%clk 0:03:49]}  Kf8 {[%clk 0:01:23]} 68. Qe1 {[%clk 0:02:24]}  Bb5 {[%clk 0:01:16]} 69. Rxb5 {[%clk 0:02:25]}  Rxb5 {[%clk 0:01:26]} 70. Bd3 {[%clk 0:02:45]}  Rb8 {[%clk 0:01:33]} 71. Qe6 {[%clk 0:02:32]}  Rd8 {[%clk 0:01:36]} 72. Be4 {[%clk 0:02:05]}  Re7 {[%clk 0:01:39]} 73. Qh3 {[%clk 0:02:28]}  Kg7 {[%clk 0:01:31]} 74. a7 {[%clk 0:02:13]}  Ra8 {[%clk 0:01:42]} 75. Ra6 {[%clk 0:02:38]}  Qf6 {[%clk 0:01:11]} 76. Qg4+ {[%clk 0:01:42]}  Kh8 {[%clk 0:01:32]} 77. Qf5 {[%clk 0:01:17]}  Qxf5 {[%clk 0:01:37]} 78. Bxf5 {[%clk 0:01:37]}  Rexa7 {[%clk 0:00:40]} 79. Rxd6 {[%clk 0:01:52]}  Ra1+ {[%clk 0:00:44]} 80. Kc2 {[%clk 0:02:18]}  R8a2+ {[%clk 0:00:46]} 81. Kd3 {[%clk 0:02:40]}  Rc1 {[%clk 0:01:06]} 82. Rxh6+ {[%clk 0:01:30]}  Kg7 {[%clk 0:01:34]} 83. Rg6+ {[%clk 0:01:37]}  Kf7 {[%clk 0:02:01]} 84. Rc6 {[%clk 0:01:45]}  Rxg2 {[%clk 0:01:06]} 85. Ke4 {[%clk 0:01:53]}  Rc3 {[%clk 0:00:38]} 86. Rc7+ {[%clk 0:01:45]}  Kf6 {[%clk 0:00:52]} 87. Rc6+ {[%clk 0:02:09]} 1/2-1/2


[Site "http://www.chessbomb.com"]

[Event "World Junior Chess Championship U20 2022"]
[White "Nogerbek, Kazybek"]
[Black "Martins, Bruno Andre Leite"]
[WhiteFideId "13710427"]
[BlackFideId "1942255"]
[WhiteElo "2467"]
[BlackElo "2306"]
[Result "1-0"]
[Round "04"]
[TimeControl "5400+30"]
[Date "2022.10.14"]
[WhiteClock "0:26:35"]
[BlackClock "0:01:42"]

1. d4 {[%clk 1:30:57]}  Nf6 {[%clk 1:27:36]} 2. Nf3 {[%clk 1:31:03]}  g6 {[%clk 1:27:52]} 3. Nc3 {[%clk 1:29:37]}  d5 {[%clk 1:24:53]} 4. Bf4 {[%clk 1:28:46]}  c6 {[%clk 1:23:16]} 5. e3 {[%clk 1:27:19]}  Bg7 {[%clk 1:22:56]} 6. h3 {[%clk 1:27:00]}  O-O {[%clk 1:21:59]} 7. Bd3 {[%clk 1:26:28]}  Nbd7 {[%clk 1:11:35]} 8. O-O {[%clk 1:23:30]}  c5 {[%clk 1:05:15]} 9. Bb5 {[%clk 1:20:12]}  c4 {[%clk 0:57:27]} 10. Bxd7 {[%clk 1:13:54]}  Bxd7 {[%clk 0:57:25]} 11. Be5 {[%clk 1:13:35]}  Bc6 {[%clk 0:50:37]} 12. a4 {[%clk 1:12:23]}  b6 {[%clk 0:49:34]} 13. b3 {[%clk 1:09:32]}  cxb3 {[%clk 0:46:48]} 14. cxb3 {[%clk 1:09:48]}  Qd7 {[%clk 0:44:17]} 15. Qd3 {[%clk 1:00:50]}  Rfc8 {[%clk 0:42:22]} 16. Rfc1 {[%clk 1:00:36]}  a6 {[%clk 0:34:04]} 17. Rc2 {[%clk 0:51:54]}  Qb7 {[%clk 0:33:23]} 18. Qe2 {[%clk 0:45:06]}  Bf8 {[%clk 0:30:13]} 19. Rac1 {[%clk 0:43:42]}  b5 {[%clk 0:23:19]} 20. axb5 {[%clk 0:40:26]}  axb5 {[%clk 0:22:53]} 21. Na2 {[%clk 0:39:52]}  Ne8 {[%clk 0:18:00]} 22. Nb4 {[%clk 0:38:33]}  Bd7 {[%clk 0:18:23]} 23. Ne1 {[%clk 0:36:13]}  Rxc2 {[%clk 0:16:17]} 24. Rxc2 {[%clk 0:36:01]}  f6 {[%clk 0:14:01]} 25. Bg3 {[%clk 0:36:05]}  e6 {[%clk 0:10:56]} 26. Ned3 {[%clk 0:35:03]}  Ra1+ {[%clk 0:11:18]} 27. Kh2 {[%clk 0:35:16]}  Nd6 {[%clk 0:09:21]} 28. Nc5 {[%clk 0:34:02]}  Qa7 {[%clk 0:09:45]} 29. Qf3 {[%clk 0:30:23]}  Kg7 {[%clk 0:07:12]} 30. Nc6 {[%clk 0:28:52]}  Bxc6 {[%clk 0:07:12]} 31. Nxe6+ {[%clk 0:29:12]}  Kf7 {[%clk 0:03:28]} 32. Nd8+ {[%clk 0:28:04]}  Ke8 {[%clk 0:01:59]} 33. Nxc6 {[%clk 0:28:05]}  Qd7 {[%clk 0:01:08]} 34. Qxf6 {[%clk 0:27:35]}  Ne4 {[%clk 0:01:19]} 35. Qe5+ {[%clk 0:27:40]}  Kf7 {[%clk 0:01:42]} 36. Qxe4 {[%clk 0:26:35]} 1-0


[Site "http://www.chessbomb.com"]

[Event "World Junior Chess Championship U20 2022"]
[White "Guz, Ari"]
[Black "Iniyan, P"]
[WhiteFideId "2825759"]
[BlackFideId "25002767"]
[WhiteElo "2305"]
[BlackElo "2541"]
[Result "0-1"]
[Round "04"]
[TimeControl "5400+30"]
[Date "2022.10.14"]
[WhiteClock "0:17:11"]
[BlackClock "1:15:29"]

1. Nf3 {[%clk 1:30:36]}  Nf6 {[%clk 1:29:21]} 2. c4 {[%clk 1:30:37]}  g6 {[%clk 1:29:39]} 3. Nc3 {[%clk 1:28:49]}  Bg7 {[%clk 1:29:05]} 4. g3 {[%clk 1:29:09]}  O-O {[%clk 1:29:25]} 5. Bg2 {[%clk 1:28:14]}  d6 {[%clk 1:29:37]} 6. d4 {[%clk 1:28:37]}  c5 {[%clk 1:30:02]} 7. dxc5 {[%clk 1:24:43]}  dxc5 {[%clk 1:29:58]} 8. Qxd8 {[%clk 1:23:24]}  Rxd8 {[%clk 1:30:13]} 9. Be3 {[%clk 1:23:31]}  Nc6 {[%clk 1:16:31]} 10. Bxc5 {[%clk 1:21:52]}  Be6 {[%clk 1:13:38]} 11. Nd2 {[%clk 1:19:47]}  Nd7 {[%clk 1:13:52]} 12. Ba3 {[%clk 1:15:47]}  Nb6 {[%clk 1:07:46]} 13. Bxc6 {[%clk 1:03:37]}  bxc6 {[%clk 1:08:08]} 14. Bxe7 {[%clk 1:04:01]}  Rd7 {[%clk 1:08:21]} 15. Bg5 {[%clk 1:04:22]}  Nxc4 {[%clk 1:07:30]} 16. Nxc4 {[%clk 1:03:05]}  Bxc4 {[%clk 1:07:52]} 17. Rc1 {[%clk 0:58:38]}  Re8 {[%clk 1:05:12]} 18. Be3 {[%clk 0:53:44]}  Bxc3+ {[%clk 1:05:16]} 19. Rxc3 {[%clk 0:54:05]}  Bxa2 {[%clk 1:05:42]} 20. O-O {[%clk 0:51:37]}  Bd5 {[%clk 1:06:08]} 21. Ra3 {[%clk 0:51:08]}  Rb7 {[%clk 1:06:20]} 22. Rxa7 {[%clk 0:41:59]}  Rxb2 {[%clk 1:06:18]} 23. Re1 {[%clk 0:42:19]}  Bc4 {[%clk 1:06:36]} 24. Kf1 {[%clk 0:41:53]}  h5 {[%clk 1:06:21]} 25. Rd7 {[%clk 0:37:49]}  g5 {[%clk 1:02:55]} 26. Rd2 {[%clk 0:30:52]}  Rxd2 {[%clk 1:03:17]} 27. Bxd2 {[%clk 0:31:20]}  g4 {[%clk 1:03:38]} 28. Be3 {[%clk 0:31:20]}  Ra8 {[%clk 1:04:03]} 29. Rc1 {[%clk 0:30:54]}  Bb5 {[%clk 1:04:18]} 30. Ke1 {[%clk 0:31:07]}  Ra2 {[%clk 1:03:52]} 31. Bd2 {[%clk 0:31:30]}  f5 {[%clk 1:03:11]} 32. Rc5 {[%clk 0:30:27]}  Kh7 {[%clk 1:03:33]} 33. f3 {[%clk 0:28:52]}  Kg6 {[%clk 1:03:29]} 34. Rc3 {[%clk 0:28:52]}  Kf6 {[%clk 1:03:29]} 35. Re3 {[%clk 0:24:09]}  Bc4 {[%clk 1:00:30]} 36. Bc3+ {[%clk 0:23:24]}  Kg6 {[%clk 0:58:17]} 37. Kf2 {[%clk 0:23:24]}  Rc2 {[%clk 0:58:17]} 38. Ba5 {[%clk 0:20:02]}  Bd5 {[%clk 0:58:24]} 39. f4 {[%clk 0:19:11]}  Be4 {[%clk 0:57:24]} 40. Be1 {[%clk 0:19:17]}  Kf7 {[%clk 0:57:04]} 41. Rc3 {[%clk 0:18:23]}  Ra2 {[%clk 0:57:26]} 42. Ke3 {[%clk 0:17:44]}  Ra1 {[%clk 0:57:20]} 43. Kd2 {[%clk 0:17:49]}  Ke6 {[%clk 0:57:40]} 44. Rc1 {[%clk 0:17:26]}  Ra3 {[%clk 0:57:09]} 45. Bf2 {[%clk 0:17:00]}  Ra2+ {[%clk 0:56:23]} 46. Ke1 {[%clk 0:16:31]}  Kd5 {[%clk 0:55:42]} 47. Be3 {[%clk 0:15:17]}  Bc2 {[%clk 0:54:26]} 48. Bf2 {[%clk 0:14:32]}  Be4 {[%clk 0:49:30]} 49. Rc5+ {[%clk 0:14:37]}  Kd6 {[%clk 0:49:51]} 50. Rc1 {[%clk 0:15:02]}  Ra5 {[%clk 0:50:10]} 51. Bd4 {[%clk 0:11:41]}  c5 {[%clk 0:50:32]} 52. Be5+ {[%clk 0:11:49]}  Kd5 {[%clk 0:50:11]} 53. Ra1 {[%clk 0:12:10]}  Rb5 {[%clk 0:50:37]} 54. Kd2 {[%clk 0:12:34]}  Rb3 {[%clk 0:50:32]} 55. Bc3 {[%clk 0:11:05]}  Rb6 {[%clk 0:50:54]} 56. Bg7 {[%clk 0:07:32]}  Rg6 {[%clk 0:49:20]} 57. Ra7 {[%clk 0:07:32]}  Kc4 {[%clk 0:49:46]} 58. Bf8 {[%clk 0:06:44]}  Rg8 {[%clk 0:49:46]} 59. Rf7 {[%clk 0:05:09]}  Rh8 {[%clk 0:49:54]} 60. Rf6 {[%clk 0:28:18]}  Rh7 {[%clk 1:17:59]} 61. Rh6 {[%clk 0:28:06]}  Rd7+ {[%clk 1:17:28]} 62. Ke3 {[%clk 0:27:51]}  Rd8 {[%clk 1:15:57]} 63. Bg7 {[%clk 0:27:31]}  Kb3 {[%clk 1:16:06]} 64. Rxh5 {[%clk 0:25:28]}  c4 {[%clk 1:15:30]} 65. Rh8 {[%clk 0:25:38]}  Rd7 {[%clk 1:15:55]} 66. Bd4 {[%clk 0:17:55]}  c3 {[%clk 1:16:18]} 67. Bxc3 {[%clk 0:17:13]}  Kxc3 {[%clk 1:16:41]} 68. h3 {[%clk 0:17:38]}  Re7 {[%clk 1:14:57]} 69. Rc8+ {[%clk 0:17:41]}  Kb4 {[%clk 1:15:04]} 70. hxg4 {[%clk 0:17:11]}  Bb7+ {[%clk 1:15:29]} 0-1


[Site "http://www.chessbomb.com"]

[Event "World Junior Chess Championship U20 2022"]
[White "Manish, Anto Cristiano F"]
[Black "Budisavljevic, Luka"]
[WhiteFideId "25095927"]
[BlackFideId "960047"]
[WhiteElo "2332"]
[BlackElo "2524"]
[Result "1-0"]
[Round "04"]
[TimeControl "5400+30"]
[Date "2022.10.14"]
[WhiteClock "0:12:53"]
[BlackClock "0:12:10"]

1. e4 {[%clk 1:30:58]}  c5 {[%clk 1:17:49]} 2. Nf3 {[%clk 1:31:17]}  e6 {[%clk 1:18:01]} 3. d4 {[%clk 1:31:33]}  cxd4 {[%clk 1:18:01]} 4. Nxd4 {[%clk 1:31:54]}  a6 {[%clk 1:18:53]} 5. Bd3 {[%clk 1:32:07]}  Bc5 {[%clk 1:19:18]} 6. Nb3 {[%clk 1:32:20]}  Ba7 {[%clk 1:19:43]} 7. O-O {[%clk 1:31:53]}  Ne7 {[%clk 1:20:05]} 8. Qe2 {[%clk 1:30:12]}  Nbc6 {[%clk 1:20:12]} 9. Be3 {[%clk 1:28:19]}  O-O {[%clk 1:20:37]} 10. c4 {[%clk 1:21:12]}  Bxe3 {[%clk 1:15:17]} 11. Qxe3 {[%clk 1:21:11]}  d5 {[%clk 1:15:42]} 12. exd5 {[%clk 1:18:19]}  exd5 {[%clk 1:16:07]} 13. c5 {[%clk 1:16:45]}  d4 {[%clk 1:06:13]} 14. Qd2 {[%clk 1:16:25]}  a5 {[%clk 1:05:49]} 15. Na3 {[%clk 1:15:37]}  a4 {[%clk 1:04:06]} 16. Nc1 {[%clk 1:15:56]}  Qd5 {[%clk 0:57:24]} 17. Qc2 {[%clk 1:15:35]}  Bf5 {[%clk 0:51:22]} 18. Bxf5 {[%clk 1:03:16]}  Nxf5 {[%clk 0:51:50]} 19. Qc4 {[%clk 1:03:16]}  Qe4 {[%clk 0:48:16]} 20. Qc2 {[%clk 1:00:16]}  Qd5 {[%clk 0:43:15]} 21. Qc4 {[%clk 0:57:31]}  Qe4 {[%clk 0:43:43]} 22. Qc2 {[%clk 0:57:43]}  Qg4 {[%clk 0:43:49]} 23. Nd3 {[%clk 0:54:58]}  Rae8 {[%clk 0:43:42]} 24. Qd1 {[%clk 0:42:48]}  Qe4 {[%clk 0:32:28]} 25. Nc4 {[%clk 0:28:50]}  Nh4 {[%clk 0:31:21]} 26. f3 {[%clk 0:27:00]}  Qd5 {[%clk 0:28:54]} 27. Qxa4 {[%clk 0:25:49]}  Nf5 {[%clk 0:23:13]} 28. Qb3 {[%clk 0:24:51]}  Ne3 {[%clk 0:21:12]} 29. Nxe3 {[%clk 0:24:21]}  Qxb3 {[%clk 0:21:40]} 30. axb3 {[%clk 0:24:42]}  dxe3 {[%clk 0:22:08]} 31. Rfe1 {[%clk 0:24:47]}  Nd4 {[%clk 0:19:01]} 32. Rac1 {[%clk 0:24:47]}  Re7 {[%clk 0:15:42]} 33. Nb4 {[%clk 0:21:31]}  Re5 {[%clk 0:11:01]} 34. Rc3 {[%clk 0:13:38]}  Rfe8 {[%clk 0:10:16]} 35. Nc2 {[%clk 0:13:26]}  Nxc2 {[%clk 0:07:51]} 36. Rxc2 {[%clk 0:13:54]}  f5 {[%clk 0:08:01]} 37. f4 {[%clk 0:14:15]}  Re4 {[%clk 0:08:11]} 38. g3 {[%clk 0:14:22]}  g5 {[%clk 0:07:35]} 39. fxg5 {[%clk 0:13:46]}  f4 {[%clk 0:08:02]} 40. Kg2 {[%clk 0:13:12]}  R8e5 {[%clk 0:04:50]} 41. Kf3 {[%clk 0:11:43]}  fxg3 {[%clk 0:04:43]} 42. hxg3 {[%clk 0:12:03]}  Kf7 {[%clk 0:02:42]} 43. Rh2 {[%clk 0:07:07]}  Rb4 {[%clk 0:26:08]} 44. Rxe3 {[%clk 0:35:51]}  Rf5+ {[%clk 0:22:39]} 45. Kg2 {[%clk 0:31:40]}  Rxc5 {[%clk 0:19:52]} 46. Rxh7+ {[%clk 0:30:32]}  Kg6 {[%clk 0:20:21]} 47. Rh4 {[%clk 0:29:45]}  Rcb5 {[%clk 0:20:23]} 48. Re5 {[%clk 0:23:38]}  Rxb3 {[%clk 0:13:07]} 49. Rh6+ {[%clk 0:22:13]}  Kg7 {[%clk 0:11:44]} 50. Re7+ {[%clk 0:20:44]}  Kg8 {[%clk 0:12:13]} 51. Rd6 {[%clk 0:15:22]}  Rxb2+ {[%clk 0:12:40]} 52. Kh3 {[%clk 0:14:34]}  Rf2 {[%clk 0:13:04]} 53. g6 {[%clk 0:14:33]}  Rf8 {[%clk 0:11:16]} 54. Rdd7 {[%clk 0:13:49]}  Rf6 {[%clk 0:10:51]} 55. g7 {[%clk 0:13:09]}  Kh7 {[%clk 0:10:41]} 56. Re8 {[%clk 0:12:06]}  Rh6+ {[%clk 0:10:58]} 57. Kg2 {[%clk 0:11:58]}  Rb2+ {[%clk 0:11:27]} 58. Kf3 {[%clk 0:12:14]}  Rf6+ {[%clk 0:11:49]} 59. Ke3 {[%clk 0:12:36]}  Rb3+ {[%clk 0:12:10]} 60. Kd4 {[%clk 0:12:53]} 1-0


[Site "http://www.chessbomb.com"]

[Event "World Junior Chess Championship U20 2022"]
[White "Blohberger, Felix"]
[Black "Lumachi, Gabriele"]
[WhiteFideId "1632051"]
[BlackFideId "2817247"]
[WhiteElo "2493"]
[BlackElo "2387"]
[Result "1-0"]
[Round "04"]
[TimeControl "5400+30"]
[Date "2022.10.14"]
[WhiteClock "0:22:59"]
[BlackClock "0:14:10"]

1. d4 {[%clk 1:30:56]}  d5 {[%clk 1:30:50]} 2. c4 {[%clk 1:31:03]}  e6 {[%clk 1:30:50]} 3. Nc3 {[%clk 1:31:24]}  Nf6 {[%clk 1:30:32]} 4. cxd5 {[%clk 1:31:46]}  exd5 {[%clk 1:30:41]} 5. Bg5 {[%clk 1:32:05]}  c6 {[%clk 1:30:04]} 6. e3 {[%clk 1:31:25]}  h6 {[%clk 1:26:49]} 7. Bh4 {[%clk 1:31:35]}  Be7 {[%clk 1:27:11]} 8. Bd3 {[%clk 1:31:53]}  O-O {[%clk 1:26:31]} 9. Nge2 {[%clk 1:26:52]}  Re8 {[%clk 1:25:32]} 10. O-O {[%clk 1:25:13]}  Nbd7 {[%clk 1:25:48]} 11. a4 {[%clk 1:23:27]}  Nh5 {[%clk 1:10:00]} 12. Bxe7 {[%clk 1:22:48]}  Qxe7 {[%clk 1:10:21]} 13. a5 {[%clk 1:23:15]}  Qg5 {[%clk 1:06:11]} 14. a6 {[%clk 1:19:01]}  b5 {[%clk 1:02:22]} 15. Nc1 {[%clk 0:52:45]}  Ndf6 {[%clk 0:27:54]} 16. Be2 {[%clk 0:51:39]}  b4 {[%clk 0:11:29]} 17. Na4 {[%clk 0:41:15]}  Ng4 {[%clk 0:11:22]} 18. Qd2 {[%clk 0:33:10]}  Nhf6 {[%clk 0:08:13]} 19. Nc5 {[%clk 0:31:26]}  Ne4 {[%clk 0:05:35]} 20. Nxe4 {[%clk 0:31:31]}  dxe4 {[%clk 0:05:56]} 21. Qxb4 {[%clk 0:24:22]}  Qh4 {[%clk 0:06:22]} 22. Qd6 {[%clk 0:23:42]}  h5 {[%clk 0:04:55]} 23. Nb3 {[%clk 0:18:13]}  Be6 {[%clk 0:02:29]} 24. Nc5 {[%clk 0:18:25]}  Bd5 {[%clk 0:02:55]} 25. Qg3 {[%clk 0:16:39]}  Qxg3 {[%clk 0:02:16]} 26. hxg3 {[%clk 0:16:59]}  g5 {[%clk 0:01:33]} 27. Rfc1 {[%clk 0:12:53]}  Kg7 {[%clk 0:01:33]} 28. Ra5 {[%clk 0:10:52]}  f5 {[%clk 0:01:43]} 29. Nb7 {[%clk 0:09:49]}  f4 {[%clk 0:01:30]} 30. gxf4 {[%clk 0:08:58]}  gxf4 {[%clk 0:01:50]} 31. exf4 {[%clk 0:09:00]}  e3 {[%clk 0:02:07]} 32. f3 {[%clk 0:08:44]}  Nh6 {[%clk 0:01:46]} 33. Bd3 {[%clk 0:06:34]}  Re7 {[%clk 0:00:53]} 34. Re1 {[%clk 0:04:42]}  Rf8 {[%clk 0:01:17]} 35. Be4 {[%clk 0:04:26]}  Rxf4 {[%clk 0:00:56]} 36. Bxd5 {[%clk 0:04:16]}  cxd5 {[%clk 0:01:14]} 37. Rxd5 {[%clk 0:04:34]}  Nf5 {[%clk 0:00:51]} 38. Nd6 {[%clk 0:04:31]}  Nxd6 {[%clk 0:00:39]} 39. Rxd6 {[%clk 0:04:55]}  Rf6 {[%clk 0:00:37]} 40. Rd5 {[%clk 0:03:46]}  Rxa6 {[%clk 0:00:35]} 41. Rxh5 {[%clk 0:03:04]}  Rb6 {[%clk 0:18:43]} 42. Re2 {[%clk 0:25:41]}  Rb3 {[%clk 0:17:37]} 43. Rc5 {[%clk 0:24:43]}  Kf6 {[%clk 0:14:10]} 44. Rc3 {[%clk 0:22:59]} 1-0


[Site "http://www.chessbomb.com"]

[Event "World Junior Chess Championship U20 2022"]
[White "Dauw, Sterre"]
[Black "Ramoutar, Alan-Safar"]
[WhiteFideId "248886"]
[BlackFideId "7704224"]
[WhiteElo "2287"]
[BlackElo "2449"]
[Result "1-0"]
[Round "04"]
[TimeControl "5400+30"]
[Date "2022.10.14"]
[WhiteClock "0:21:16"]
[BlackClock "0:01:43"]

1. e4 {[%clk 1:30:57]}  c6 {[%clk 1:30:38]} 2. d4 {[%clk 1:31:22]}  d5 {[%clk 1:30:57]} 3. Nc3 {[%clk 1:31:44]}  dxe4 {[%clk 1:30:43]} 4. Nxe4 {[%clk 1:32:09]}  Nf6 {[%clk 1:30:59]} 5. Nxf6+ {[%clk 1:32:33]}  exf6 {[%clk 1:31:22]} 6. c3 {[%clk 1:32:57]}  Qd5 {[%clk 1:31:21]} 7. Nf3 {[%clk 1:32:19]}  Bd6 {[%clk 1:31:16]} 8. c4 {[%clk 1:29:28]}  Bb4+ {[%clk 1:28:41]} 9. Bd2 {[%clk 1:29:36]}  Qd6 {[%clk 1:28:15]} 10. Bxb4 {[%clk 1:22:19]}  Qxb4+ {[%clk 1:28:42]} 11. Qd2 {[%clk 1:22:42]}  Qd6 {[%clk 1:28:51]} 12. Be2 {[%clk 1:23:05]}  O-O {[%clk 1:29:04]} 13. O-O {[%clk 1:23:23]}  Bg4 {[%clk 1:01:27]} 14. h3 {[%clk 1:20:12]}  Bxf3 {[%clk 0:59:32]} 15. Bxf3 {[%clk 1:19:31]}  Na6 {[%clk 0:59:55]} 16. Rfd1 {[%clk 1:18:29]}  Nc7 {[%clk 0:56:17]} 17. b4 {[%clk 1:18:25]}  Rad8 {[%clk 0:55:56]} 18. h4 {[%clk 1:06:57]}  f5 {[%clk 0:52:46]} 19. Qc3 {[%clk 1:06:03]}  Qf6 {[%clk 0:51:33]} 20. Rac1 {[%clk 1:00:13]}  Qxh4 {[%clk 0:49:55]} 21. d5 {[%clk 0:43:41]}  cxd5 {[%clk 0:34:52]} 22. Qe5 {[%clk 0:40:37]}  Ne6 {[%clk 0:32:40]} 23. g3 {[%clk 0:34:53]}  Qg5 {[%clk 0:18:28]} 24. cxd5 {[%clk 0:22:32]}  f4 {[%clk 0:18:52]} 25. Qe4 {[%clk 0:22:59]}  fxg3 {[%clk 0:16:25]} 26. dxe6 {[%clk 0:23:24]}  fxe6 {[%clk 0:16:04]} 27. fxg3 {[%clk 0:19:39]}  Qxg3+ {[%clk 0:16:04]} 28. Bg2 {[%clk 0:20:03]}  Qf2+ {[%clk 0:06:53]} 29. Kh1 {[%clk 0:19:51]}  Rxd1+ {[%clk 0:06:25]} 30. Rxd1 {[%clk 0:20:17]}  Qxa2 {[%clk 0:06:08]} 31. Bh3 {[%clk 0:15:24]}  Kh8 {[%clk 0:06:02]} 32. Qxe6 {[%clk 0:11:53]}  Qxe6 {[%clk 0:06:24]} 33. Bxe6 {[%clk 0:12:17]}  g6 {[%clk 0:06:05]} 34. Rd7 {[%clk 0:12:31]}  Rf6 {[%clk 0:02:23]} 35. Bd5 {[%clk 0:12:56]}  Rf5 {[%clk 0:00:35]} 36. b5 {[%clk 0:10:05]}  h5 {[%clk 0:00:54]} 37. Bc4 {[%clk 0:10:09]}  Rc5 {[%clk 0:01:00]} 38. Bf1 {[%clk 0:09:21]}  Rc1 {[%clk 0:00:49]} 39. Kg1 {[%clk 0:09:37]}  g5 {[%clk 0:00:37]} 40. Rxb7 {[%clk 0:10:02]}  Ra1 {[%clk 0:00:53]} 41. Rf7 {[%clk 0:08:26]}  Ra3 {[%clk 0:27:41]} 42. Rf5 {[%clk 0:36:13]}  Rg3+ {[%clk 0:23:55]} 43. Kh2 {[%clk 0:35:29]}  h4 {[%clk 0:22:22]} 44. Rf6 {[%clk 0:35:54]}  Ra3 {[%clk 0:13:10]} 45. Rg6 {[%clk 0:31:13]}  Ra2+ {[%clk 0:13:01]} 46. Kg1 {[%clk 0:22:29]}  Ra5 {[%clk 0:12:59]} 47. Kf2 {[%clk 0:20:31]}  Kh7 {[%clk 0:07:12]} 48. Rxg5 {[%clk 0:19:42]}  a6 {[%clk 0:07:13]} 49. Bd3+ {[%clk 0:20:07]}  Kh8 {[%clk 0:07:25]} 50. Rh5+ {[%clk 0:20:32]}  Kg8 {[%clk 0:07:25]} 51. b6 {[%clk 0:20:54]}  Ra2+ {[%clk 0:02:00]} 52. Be2 {[%clk 0:20:50]}  Rb2 {[%clk 0:01:43]} 53. Rb5 {[%clk 0:21:16]} 1-0


[Site "http://www.chessbomb.com"]